bitfinex-derivatives/quotes_BTCF0:USTF0_20250320
["timestamp","ask_amount","ask_price","bid_price","bid_amount"]
[1742436049162,0.2047553,85933.0,85928.0,0.0930806]
[1742436049362,0.2047553,85933.0,85931.0,4e-05]
[1742436049862,0.2047553,85933.0,85931.0,0.0931168]
[1742436050062,0.2047553,85933.0,85931.0,4e-05]
[1742436050674,0.0930763,85932.0,85931.0,4e-05]
[1742436050866,0.0930937,85916.0,85915.0,0.06]
[1742436051065,0.0930937,85916.0,85915.0,0.07]
[1742436051270,0.0920937,85916.0,85915.0,0.07]
[1742436051670,0.0920937,85916.0,85915.0,0.01]
[1742436051968,0.0920937,85916.0,85915.0,0.015]
[1742436052160,0.0930937,85916.0,85915.0,0.075]
[1742436052860,0.10162765,85916.0,85915.0,0.015]
[1742436053170,0.1147402,85916.0,85915.0,0.015]
[1742436054766,0.1647402,85916.0,85915.0,0.015]
[1742436055370,0.10520625,85916.0,85915.0,0.015]
[1742436055576,0.22188625,85916.0,85915.0,0.1080948]
[1742436056272,0.22188625,85916.0,85915.0,0.1364]
[1742436056575,0.287604,85916.0,85915.0,0.011]
[1742436058477,0.698404,85916.0,85915.0,0.011]
[1742436058677,0.0931023,85908.0,85901.0,0.0577]
[1742436058873,0.2097823,85908.0,85907.0,0.04017452]
[1742436059079,0.2097823,85908.0,85907.0,1.54017452]
[1742436059272,0.2097823,85908.0,85907.0,0.04017452]
[1742436059777,0.2597823,85908.0,85907.0,0.04017452]
[1742436059978,0.2597823,85908.0,85907.0,0.04417452]
[1742436060179,0.1431023,85908.0,85907.0,0.04417452]
[1742436060368,0.2597823,85908.0,85907.0,0.04417452]
[1742436060563,0.2097823,85908.0,85907.0,0.04417452]
[1742436060776,0.2097823,85908.0,85907.0,0.10517452]
[1742436061376,0.0931023,85908.0,85907.0,0.10517452]
[1742436061578,0.2098223,85908.0,85907.0,0.10517452]
[1742436061780,0.0931023,85908.0,85907.0,0.10517452]
[1742436062080,0.0931023,85908.0,85907.0,0.25717792]
[1742436062476,0.1558023,85908.0,85907.0,0.04417452]
[1742436062779,0.2129023,85908.0,85907.0,0.04417452]
[1742436063779,0.2629023,85908.0,85907.0,0.04417452]
[1742436064971,0.2629023,85908.0,85907.0,0.04017452]
[1742436065174,0.2659023,85908.0,85907.0,0.04017452]
[1742436066175,0.2649023,85908.0,85907.0,0.04017452]
[1742436066576,0.1147,85908.0,85907.0,0.04017452]
[1742436066783,0.2078023,85908.0,85907.0,0.16257452]
[1742436066981,0.1578023,85908.0,85907.0,0.21917452]
[1742436067386,0.1578023,85908.0,85907.0,0.31227792]
[1742436067592,0.0465487,85913.0,85912.0,0.093098]
[1742436067896,0.2563688,85913.0,85912.0,0.03]
[1742436068795,0.3153688,85913.0,85912.0,0.03]
[1742436071589,0.2098169,85913.0,85912.0,0.123098]
[1742436072387,0.2098169,85913.0,85912.0,0.180798]
[1742436072587,0.0930969,85913.0,85912.0,0.1468]
[1742436072991,0.0930969,85913.0,85912.0,0.5076]
[1742436074188,0.1535969,85913.0,85912.0,0.5076]
[1742436074992,0.2101969,85913.0,85912.0,0.5076]
[1742436077200,0.2101969,85913.0,85912.0,0.5086]
[1742436077796,0.2101969,85913.0,85912.0,0.5076]
[1742436080299,0.2121969,85913.0,85912.0,0.5076]
[1742436080899,0.2121969,85913.0,85912.0,0.1468]
[1742436081204,0.2111969,85913.0,85912.0,0.1468]
[1742436082399,0.2611969,85913.0,85912.0,0.1468]
[1742436082699,0.2621969,85913.0,85912.0,0.1468]
[1742436083103,0.2611969,85913.0,85912.0,0.1468]
[1742436083499,0.2601969,85913.0,85912.0,0.03]
[1742436083802,0.2611969,85913.0,85912.0,0.03]
[1742436084004,0.2611969,85913.0,85912.0,0.0911]
[1742436084404,0.2621969,85913.0,85912.0,0.0911]
[1742436084899,0.2631969,85913.0,85912.0,0.03]
[1742436085101,0.2611969,85913.0,85912.0,0.03]
[1742436085305,0.2641969,85913.0,85912.0,0.03]
[1742436085504,0.2651969,85913.0,85912.0,0.03]
[1742436086101,0.2631969,85913.0,85912.0,0.03]
[1742436086301,0.2651969,85913.0,85912.0,0.03]
[1742436087103,0.2621969,85913.0,85912.0,0.03]
[1742436087309,0.2661969,85913.0,85912.0,0.03]
[1742436087906,0.2671969,85913.0,85912.0,0.03]
[1742436088299,0.2651969,85913.0,85912.0,0.03]
[1742436088503,0.2681969,85913.0,85912.0,0.03]
[1742436088806,0.2631969,85913.0,85912.0,0.03]
[1742436089007,0.2681969,85913.0,85912.0,0.03]
[1742436089200,0.093098,85912.0,85911.0,4e-05]
[1742436089402,0.143098,85912.0,85911.0,0.03004]
[1742436089598,0.258098,85912.0,85911.0,0.03004]
[1742436089807,0.618898,85912.0,85911.0,0.03004]
[1742436091304,1.032198,85912.0,85911.0,0.03004]
[1742436092010,1.035198,85912.0,85911.0,0.03004]
[1742436094311,1.030198,85912.0,85911.0,0.03004]
[1742436094505,1.151878,85912.0,85911.0,0.03004]
[1742436095812,1.152878,85912.0,85911.0,0.03004]
[1742436096010,1.036198,85912.0,85911.0,0.03004]
[1742436096212,0.4173,85912.0,85911.0,0.4839391]
[1742436096408,0.46714338,85912.0,85911.0,0.39084]
[1742436096816,0.46614338,85912.0,85911.0,0.39084]
[1742436097121,0.099098,85912.0,85911.0,0.39084]
[1742436097507,0.095098,85912.0,85911.0,0.39084]
[1742436097704,0.099098,85912.0,85911.0,0.50924]
[1742436101118,0.096098,85912.0,85911.0,0.50924]
[1742436101419,0.096098,85912.0,85911.0,0.5092]
[1742436101816,0.096098,85912.0,85911.0,0.1484]
[1742436101817,0.456898,85912.0,85911.0,0.1484]
[1742436102014,0.456898,85912.0,85911.0,0.0888]
[1742436102215,0.624198,85912.0,85911.0,0.0888]
[1742436102420,0.624198,85912.0,85911.0,0.1473]
[1742436102922,0.625198,85912.0,85911.0,0.1473]
[1742436103122,0.624198,85912.0,85911.0,0.0888]
[1742436103322,0.624198,85912.0,85911.0,0.03]
[1742436104016,0.627198,85912.0,85911.0,0.03]
[1742436104219,0.627198,85912.0,85911.0,0.0921]
[1742436104515,0.627198,85912.0,85911.0,0.1506]
[1742436104720,0.566698,85912.0,85911.0,0.1506]
[1742436105019,0.567698,85912.0,85911.0,0.2124]
[1742436105227,0.566698,85912.0,85911.0,0.2124]
[1742436105419,0.518698,85912.0,85911.0,0.2124]
[1742436105722,0.509898,85912.0,85911.0,0.2124]
[1742436105922,0.264778,85912.0,85911.0,0.2124]
[1742436106514,0.265778,85912.0,85911.0,0.1506]
[1742436106821,0.321378,85912.0,85911.0,0.1506]
[1742436107214,0.378078,85912.0,85911.0,0.1506]
[1742436107421,0.376078,85912.0,85911.0,0.1506]
[1742436107616,0.380078,85912.0,85911.0,0.1506]
[1742436108516,0.265738,85912.0,85911.0,0.1506]
[1742436110620,0.261738,85912.0,85911.0,0.1506]
[1742436110827,0.265738,85912.0,85911.0,0.1506]
[1742436111013,0.006,85912.0,85911.0,0.2436991]
[1742436111216,0.00861168,85931.0,85923.0,0.0930861]
[1742436111427,0.09325946,85924.0,85923.0,0.3608]
[1742436112927,0.09525946,85924.0,85923.0,0.3608]
[1742436113313,0.09525946,85924.0,85923.0,0.4538861]
[1742436113517,0.09725946,85924.0,85923.0,0.4538861]
[1742436113713,0.09725946,85924.0,85923.0,0.5156861]
[1742436114423,0.09725946,85924.0,85923.0,0.5782861]
[1742436116327,0.09725946,85924.0,85923.0,2.0782861]
[1742436116328,0.00417446,85924.0,85923.0,2.0782861]
[1742436116522,0.00417446,85924.0,85923.0,2.1782861]
[1742436116721,0.00417446,85924.0,85923.0,2.0782861]
[1742436116931,0.09725946,85924.0,85923.0,1.9852]
[1742436117223,0.09725946,85924.0,85923.0,0.4852]
[1742436118626,0.21389946,85924.0,85923.0,0.4852]
[1742436118929,0.27369946,85924.0,85923.0,0.4852]
[1742436120121,0.21389946,85924.0,85923.0,0.4852]
[1742436120923,0.27119946,85924.0,85923.0,0.4852]
[1742436121130,0.27119946,85924.0,85922.0,4e-05]
[1742436121131,0.0930861,85923.0,85922.0,4e-05]
[1742436121323,0.0930861,85923.0,85912.0,0.122]
[1742436121324,0.0930969,85913.0,85912.0,0.122]
[1742436121521,0.2097369,85913.0,85912.0,0.122]
[1742436122032,0.0931023,85908.0,85907.0,0.00017452]
[1742436122426,0.1431023,85908.0,85907.0,0.00017452]
[1742436123331,0.1431023,85908.0,85907.0,0.06157452]
[1742436123332,0.1451023,85908.0,85907.0,0.06157452]
[1742436123530,0.1451023,85908.0,85907.0,0.12157452]
[1742436123729,0.2617423,85908.0,85907.0,0.12157452]
[1742436123920,0.0951023,85908.0,85907.0,0.18377452]
[1742436124129,0.2117423,85908.0,85907.0,0.18377452]
[1742436124431,0.0951023,85908.0,85907.0,0.18377452]
[1742436125122,0.0951023,85908.0,85907.0,0.12157452]
[1742436125324,0.0931023,85908.0,85907.0,0.12157452]
[1742436125529,0.2096023,85908.0,85907.0,0.12157452]
[1742436126324,0.2596023,85908.0,85907.0,0.00017452]
[1742436126527,0.53354538,85908.0,85882.0,0.3608]
[1742436126719,0.53354538,85908.0,85881.0,4e-05]
[1742436126720,0.05,85897.0,85881.0,4e-05]
[1742436126923,0.0931305,85882.0,85881.0,4e-05]
[1742436127132,0.2097705,85882.0,85881.0,4e-05]
[1742436127728,0.22260388,85882.0,85881.0,4e-05]
[1742436128325,0.0931381,85875.0,85874.0,0.0589]
[1742436128636,0.2097781,85875.0,85874.0,0.0589]
[1742436129932,0.2097781,85875.0,85874.0,0.1580392]
[1742436130139,0.2107781,85875.0,85874.0,0.2183392]
[1742436130328,0.001,85875.0,85874.0,0.2183392]
[1742436130530,0.0941381,85875.0,85874.0,0.3885392]
[1742436131130,0.0941381,85875.0,85874.0,0.1854]
[1742436131640,0.0941381,85875.0,85874.0,0.1252]
[1742436132140,0.1525381,85875.0,85874.0,0.1252]
[1742436132634,0.0941381,85875.0,85874.0,0.2183392]
[1742436133837,0.001,85875.0,85874.0,0.3283392]
[1742436134139,0.0941381,85875.0,85874.0,0.3283392]
[1742436134737,0.0941381,85875.0,85874.0,1.8283392]
[1742436137434,0.001,85875.0,85874.0,1.7183392]
[1742436137631,0.0941381,85875.0,85874.0,1.7183392]
[1742436137947,0.1396898,85887.0,85886.0,0.0931262]
[1742436138145,0.0465625,85887.0,85886.0,0.4539262]
[1742436138332,0.09329723,85890.0,85889.0,0.0931229]
[1742436140835,0.09329723,85890.0,85889.0,0.0941229]
[1742436141640,0.15429723,85890.0,85889.0,0.0941229]
[1742436143748,0.27429723,85890.0,85889.0,0.0941229]
[1742436144639,0.15429723,85890.0,85889.0,0.0941229]
[1742436144835,0.09329723,85890.0,85889.0,0.0941229]
[1742436145040,0.00017463,85890.0,85889.0,0.0941229]
[1742436146446,0.00017463,85890.0,85889.0,0.2041229]
[1742436147634,0.1059547,85903.0,85902.0,0.0931088]
[1742436148050,0.1630547,85903.0,85902.0,0.0931088]
[1742436148255,0.17584978,85903.0,85902.0,0.0931088]
[1742436148642,0.17584978,85903.0,85902.0,0.2085088]
[1742436149150,0.17584978,85903.0,85900.0,0.3608]
[1742436149151,0.0931099,85901.0,85900.0,0.3608]
[1742436151347,0.0941099,85901.0,85900.0,0.3608]
[1742436152042,0.0931099,85901.0,85900.0,0.3608]
[1742436152556,0.139674,85897.0,85896.0,0.0931153]
[1742436152852,0.0931164,85895.0,85894.0,0.00017463]
[1742436153554,0.2121164,85895.0,85894.0,0.00017463]
[1742436154846,0.2121164,85895.0,85894.0,0.00117463]
[1742436156945,0.2121164,85895.0,85894.0,0.00017463]
[1742436157549,0.2121164,85895.0,85886.0,0.3608]
[1742436157753,0.0931251,85887.0,85886.0,0.3608]
[1742436157946,0.2097651,85887.0,85886.0,0.3608]
[1742436158556,0.3292651,85887.0,85886.0,0.3608]
[1742436158756,0.3292651,85887.0,85886.0,0.3628]
[1742436158949,0.3292651,85887.0,85886.0,0.002]
[1742436160252,0.3292651,85887.0,85886.0,0.0594]
[1742436160452,0.3292651,85887.0,85886.0,0.1196]
[1742436160952,0.3292651,85887.0,85886.0,0.2726262]
[1742436161847,0.2683651,85887.0,85886.0,0.1196]
[1742436165556,0.1517251,85887.0,85886.0,0.1196]
[1742436166263,0.2129251,85887.0,85886.0,0.1196]
[1742436167563,0.2129251,85887.0,85886.0,0.002]
[1742436170558,0.2129251,85887.0,85886.0,0.0602]
[1742436170958,0.2129251,85887.0,85886.0,0.002]
[1742436173356,0.2129251,85887.0,85886.0,0.0646]
[1742436174066,0.2129251,85887.0,85886.0,0.126]
[1742436177771,0.3295651,85887.0,85886.0,0.126]
[1742436177968,0.2683651,85887.0,85886.0,0.126]
[1742436180272,0.0931251,85887.0,85886.0,0.126]
[1742436180474,0.2097651,85887.0,85886.0,0.126]
[1742436181264,0.0931251,85887.0,85886.0,0.2191262]
[1742436181464,0.2097651,85887.0,85886.0,0.126]
[1742436181865,0.2097651,85887.0,85886.0,0.2191262]
[1742436182167,0.2097651,85887.0,85886.0,0.126]
[1742436183568,0.2097651,85887.0,85886.0,0.2191262]
[1742436183873,0.2097651,85887.0,85886.0,0.2181262]
[1742436185670,0.0931251,85887.0,85886.0,0.2181262]
[1742436185875,0.0931251,85887.0,85886.0,0.2191262]
[1742436186375,0.0931251,85887.0,85886.0,0.2342953]
[1742436187271,0.0931251,85887.0,85886.0,0.2332953]
[1742436188175,0.0931251,85887.0,85886.0,0.1401691]
[1742436188474,0.2097651,85887.0,85886.0,1e-08]
[1742436188865,0.3826651,85887.0,85886.0,1e-08]
[1742436189269,0.0931294,85883.0,85882.0,0.3608]
[1742436190074,0.0921294,85883.0,85882.0,0.3608]
[1742436190267,0.2134294,85883.0,85882.0,0.0596]
[1742436190973,0.0911338,85879.0,85878.0,0.00017463]
[1742436191276,0.2077738,85879.0,85878.0,0.00017463]
[1742436191671,0.22031706,85879.0,85878.0,0.00017463]
[1742436191869,0.28221706,85879.0,85878.0,0.00017463]
[1742436192274,0.34061706,85879.0,85878.0,0.12147463]
[1742436192674,0.34061706,85879.0,85878.0,0.12347463]
[1742436197477,0.27871706,85879.0,85878.0,0.12347463]
[1742436197786,0.22031706,85879.0,85878.0,0.12347463]
[1742436197971,0.22031706,85879.0,85877.0,0.3608]
[1742436197972,0.19228326,85879.0,85868.0,0.04658]
[1742436198281,0.0465768,85861.0,85857.0,0.3608]
[1742436198483,0.0931555,85859.0,85858.0,0.0609]
[1742436198968,0.2102555,85859.0,85858.0,0.0609]
[1742436199389,0.2072555,85859.0,85858.0,0.0609]
[1742436199770,0.21598184,85859.0,85858.0,0.0609]
[1742436200179,0.21598184,85859.0,85858.0,0.0629]
[1742436201479,0.21598184,85859.0,85858.0,0.1233]
[1742436202672,0.21598184,85859.0,85858.0,0.0629]
[1742436202874,0.21598184,85859.0,85858.0,0.002]
[1742436203191,0.26598184,85859.0,85858.0,0.002]
[1742436203683,0.62678184,85859.0,85858.0,0.002]
[1742436204988,0.0931772,85839.0,85830.0,0.3608]
[1742436205285,0.2098172,85839.0,85837.0,0.0625]
[1742436205581,0.2098172,85839.0,85837.0,1.5625]
[1742436205979,0.2098172,85839.0,85838.0,0.4201]
[1742436206288,0.2098172,85839.0,85838.0,0.3608]
[1742436206483,0.22225014,85839.0,85838.0,0.3608]
[1742436206888,0.28085014,85839.0,85838.0,0.4814]
[1742436207083,0.22325014,85839.0,85838.0,0.5745783]
[1742436207285,0.22225014,85839.0,85838.0,0.5745783]
[1742436207479,0.22325014,85839.0,85838.0,0.5745783]
[1742436207676,0.13007294,85839.0,85838.0,0.5745783]
[1742436208186,0.01343294,85839.0,85838.0,0.5745783]
[1742436208385,0.01343294,85839.0,85838.0,2.1845783]
[1742436208580,0.0941772,85839.0,85838.0,2.0745783]
[1742436208787,0.0941772,85839.0,85838.0,2.1645783]
[1742436208977,0.0941772,85839.0,85838.0,0.3608]
[1742436209184,0.10679931,85839.0,85838.0,0.3608]
[1742436209491,0.22639931,85839.0,85838.0,0.3608]
[1742436209889,0.22639931,85839.0,85838.0,0.418]
[1742436210085,0.22639931,85839.0,85838.0,0.3608]
[1742436210482,0.22539931,85839.0,85838.0,0.3608]
[1742436211288,0.22539931,85839.0,85838.0,0.4811]
[1742436211686,0.28427931,85839.0,85838.0,0.4811]
[1742436211884,0.28427931,85839.0,85838.0,1.9811]
[1742436213293,0.22247931,85839.0,85838.0,1.9811]
[1742436213789,0.22247931,85839.0,85838.0,0.3608]
[1742436213989,0.28177931,85839.0,85838.0,0.3608]
[1742436214989,0.33177931,85839.0,85838.0,0.3608]
[1742436215694,0.28177931,85839.0,85838.0,0.3608]
[1742436216594,0.0465914,85834.0,85830.0,0.00017475]
[1742436216789,0.0931848,85832.0,85831.0,0.0611]
[1742436216983,0.2598648,85832.0,85831.0,0.0611]
[1742436217299,0.3284648,85832.0,85831.0,0.0611]
[1742436217597,0.3284648,85832.0,85831.0,0.1178]
[1742436219089,0.3294648,85832.0,85831.0,0.1178]
[1742436219490,0.0465961,85826.0,85823.0,0.3608]
[1742436219692,0.3261724,85825.0,85824.0,0.0567]
[1742436221692,0.3271724,85825.0,85824.0,1.5567]
[1742436222797,0.2815766,85825.0,85822.0,4e-05]
[1742436222990,0.2815766,85825.0,85816.0,0.36097475]
[1742436222991,0.0932011,85817.0,85816.0,0.00017475]
[1742436223306,0.0932076,85811.0,85810.0,0.0576]
[1742436223600,0.10574773,85811.0,85810.0,0.0576]
[1742436224891,0.0932051,85816.0,85815.0,0.0932021]
[1742436225091,0.0932032,85815.0,85814.0,0.3608]
[1742436225292,0.0932108,85809.0,85808.0,0.1398119]
[1742436225596,0.0932108,85809.0,85808.0,1.7498119]
[1742436226802,0.0932108,85809.0,85808.0,1.5]
[1742436228205,0.0932108,85808.0,85807.0,4e-05]
[1742436228395,0.0932119,85807.0,85806.0,0.0932126]
[1742436229007,0.0932119,85807.0,85806.0,0.1932126]
[1742436231598,0.18642,85814.0,85813.0,0.1398037]
[1742436231805,0.18642,85814.0,85813.0,0.5006037]
[1742436232406,0.0932081,85814.0,85813.0,0.5006037]
[1742436233122,0.093203,85816.0,85815.0,0.1398022]
[1742436234495,0.11668,85826.0,85825.0,0.0931924]
[1742436234701,0.2098713,85826.0,85825.0,0.0931924]
[1742436234900,0.10570003,85826.0,85825.0,0.0931924]
[1742436236208,0.10670003,85826.0,85825.0,0.0931924]
[1742436236603,0.16810003,85826.0,85825.0,0.0931924]
[1742436237195,0.17110003,85826.0,85825.0,0.0931924]
[1742436237802,0.004,85826.0,85825.0,0.0931924]
[1742436238002,0.0971913,85826.0,85825.0,0.0931924]
[1742436238607,0.004,85826.0,85825.0,0.10804247]
[1742436238809,0.004,85826.0,85825.0,1.60804247]
[1742436240505,0.0465893,85838.0,85832.0,0.0931848]
[1742436240705,0.00868805,85858.0,85836.0,0.0465901]
[1742436240911,0.0465758,85867.0,85866.0,0.0931468]
[1742436241108,0.1632558,85867.0,85866.0,0.0931468]
[1742436241710,0.01261704,85871.0,85870.0,0.0931435]
[1742436242009,0.0931425,85871.0,85870.0,0.0931435]
[1742436242402,0.0931425,85871.0,85870.0,0.2142435]
[1742436243012,0.10543913,85871.0,85870.0,0.2142435]
[1742436243514,0.10843913,85871.0,85870.0,0.2142435]
[1742436244116,0.10843913,85871.0,85870.0,0.1211]
[1742436244415,0.09315,85864.0,85863.0,0.0931501]
[1742436244713,0.09315,85864.0,85863.0,0.1519501]
[1742436245412,0.21065,85864.0,85863.0,0.1519501]
[1742436245912,0.21065,85864.0,85863.0,0.2132501]
[1742436246106,0.21165,85864.0,85863.0,0.2132501]
[1742436246510,0.21465,85864.0,85863.0,0.2132501]
[1742436248708,0.21465,85864.0,85863.0,0.1519501]
[1742436249214,0.21465,85864.0,85863.0,0.2130501]
[1742436250005,0.21465,85864.0,85863.0,0.1519501]
[1742436250407,0.21465,85864.0,85863.0,0.0588]
[1742436250817,0.21465,85864.0,85863.0,0.1519511]
[1742436251217,0.21465,85864.0,85863.0,0.0588]
[1742436251917,0.21465,85864.0,85863.0,0.1519511]
[1742436252316,0.21465,85864.0,85863.0,0.2085511]
[1742436257317,0.21465,85864.0,85863.0,0.1154]
[1742436257518,0.21465,85864.0,85863.0,0.2085511]
[1742436257720,0.0605,85864.0,85863.0,0.2085511]
[1742436257917,0.15365,85864.0,85863.0,0.2085511]
[1742436258715,0.15365,85864.0,85863.0,1.7085511]
[1742436262919,0.0605,85864.0,85863.0,1.7085511]
[1742436263123,0.0605,85864.0,85863.0,1.7206877]
[1742436263321,0.09331285,85875.0,85874.0,0.0931392]
[1742436264223,0.09331285,85875.0,85874.0,0.2053392]
[1742436264423,0.10582519,85875.0,85874.0,0.1474392]
[1742436264722,0.1397207,85867.0,85866.0,0.0931479]
[1742436265416,0.1397207,85867.0,85866.0,0.1474479]
[1742436266312,0.1387207,85867.0,85866.0,0.1474479]
[1742436267216,0.1447207,85867.0,85866.0,0.1474479]
[1742436267625,0.1447207,85867.0,85866.0,0.2047479]
[1742436268516,0.0931479,85866.0,85865.0,0.0006]
[1742436268822,0.0931533,85862.0,85861.0,0.0465766]
[1742436269022,0.0931533,85862.0,85861.0,1.6620766]
[1742436269221,0.1102,85862.0,85861.0,1.7552299]
[1742436269416,0.2033522,85862.0,85861.0,1.77064828]
[1742436270314,0.0543,85862.0,85861.0,1.77064828]
[1742436270512,0.0971488,85866.0,85863.0,0.046575]
[1742436270713,0.0971488,85866.0,85865.0,0.453949]
[1742436270914,0.1543488,85866.0,85865.0,0.453949]
[1742436271126,0.1543488,85866.0,85865.0,0.46936738]
[1742436271317,0.1543488,85866.0,85865.0,0.58576738]
[1742436271517,0.1553488,85866.0,85865.0,0.58576738]
[1742436271719,0.1513488,85866.0,85865.0,0.58576738]
[1742436272225,0.1513488,85866.0,85865.0,0.61076099]
[1742436272623,0.1553488,85866.0,85865.0,0.61076099]
[1742436273227,0.1553488,85866.0,85865.0,0.58576738]
[1742436274227,0.2119488,85866.0,85865.0,0.58576738]
[1742436275630,0.2109488,85866.0,85865.0,0.58676738]
[1742436276033,0.2069488,85866.0,85865.0,0.58676738]
[1742436276228,0.2069488,85866.0,85865.0,0.58776738]
[1742436276428,0.2069488,85866.0,85865.0,0.572349]
[1742436278531,0.2069488,85866.0,85865.0,0.002]
[1742436278720,0.2069488,85866.0,85865.0,0.001]
[1742436278925,0.2069488,85866.0,85865.0,0.003]
[1742436279125,0.2069488,85866.0,85865.0,0.096149]
[1742436279729,0.2079488,85866.0,85865.0,0.001]
[1742436281029,0.2079488,85866.0,85865.0,0.094149]
[1742436281229,0.2069488,85866.0,85865.0,0.148949]
[1742436281935,0.2089488,85866.0,85865.0,0.147949]
[1742436282133,0.2089488,85866.0,85861.0,0.05784]
[1742436282134,0.093149,85865.0,85861.0,0.00064]
[1742436282323,0.0931555,85859.0,85843.0,0.1088]
[1742436282519,0.2097555,85859.0,85848.0,0.0931666]
[1742436282720,0.2097555,85859.0,85846.0,0.1397541]
[1742436282918,0.2097555,85859.0,85847.0,0.0548]
[1742436283132,0.3249555,85859.0,85842.0,1.5]
[1742436283343,0.3249555,85859.0,85839.0,4e-05]
[1742436283344,0.0465869,85842.0,85839.0,4e-05]
[1742436283535,0.0931761,85840.0,85839.0,4e-05]
[1742436284029,0.2048761,85840.0,85839.0,4e-05]
[1742436285433,0.2048761,85840.0,85839.0,0.00404]
[1742436285734,0.2058761,85840.0,85839.0,0.00504]
[1742436286921,0.21806884,85840.0,85839.0,0.00504]
[1742436287128,0.0931815,85835.0,85834.0,4e-05]
[1742436287322,0.0931848,85832.0,85831.0,0.00017475]
[1742436287533,0.093188,85829.0,85828.0,0.20831681]
[1742436288325,0.195988,85829.0,85828.0,0.20831681]
[1742436289238,0.246988,85829.0,85828.0,0.21331681]
[1742436289736,0.05,85822.0,85820.0,0.00011648]
[1742436289925,0.6759367,85821.0,85820.0,0.00011648]
[1742436290127,0.0932032,85815.0,85805.0,0.1068]
[1742436290539,0.0932032,85815.0,85811.0,4e-05]
[1742436290849,0.0466055,85808.0,85804.0,0.48008734]
[1742436291037,0.0932141,85805.0,85804.0,0.48008734]
[1742436292937,0.0932163,85803.0,85802.0,4e-05]
[1742436293730,0.2017163,85803.0,85802.0,4e-05]
[1742436294729,0.2017163,85803.0,85802.0,1.50004]
[1742436295037,0.2017163,85803.0,85802.0,4e-05]
[1742436295234,0.0932184,85801.0,85800.0,0.10004]
[1742436295436,0.2027163,85803.0,85783.0,0.3608]
[1742436295437,0.0466151,85791.0,85783.0,0.3608]
[1742436295637,0.0932369,85784.0,85783.0,0.0985]
[1742436296036,0.11664,85789.0,85785.0,0.0466179]
[1742436296231,0.16894,85789.0,85786.0,0.1465169]
[1742436296436,0.0932337,85787.0,85786.0,0.0999]
[1742436297039,0.1455337,85787.0,85786.0,0.0999]
[1742436297240,0.5063337,85787.0,85786.0,0.0523]
[1742436297440,0.42539076,85787.0,85757.0,0.0932651]
[1742436297644,0.0932587,85764.0,85763.0,0.051]
[1742436297935,0.0932587,85764.0,85759.0,0.0932638]
[1742436297936,0.0932641,85759.0,85758.0,0.0495]
[1742436298136,0.0932641,85759.0,85739.0,0.10578762]
[1742436298137,0.11664,85759.0,85739.0,0.10578762]
[1742436298348,0.0932804,85744.0,85741.0,0.0932826]
[1742436298534,0.0932804,85744.0,85743.0,1.8608]
[1742436298933,0.0466411,85743.0,85739.0,0.051]
[1742436299133,0.4540814,85744.0,85743.0,0.0932815]
[1742436299332,0.0932841,85743.0,85742.0,0.0932815]
[1742436299538,0.3608,85744.0,85743.0,0.1427815]
[1742436299737,0.4550804,85744.0,85743.0,0.1427815]
[1742436300339,0.0942804,85744.0,85743.0,0.1427815]
[1742436300640,0.001,85744.0,85743.0,0.1427815]
[1742436301040,0.002,85744.0,85743.0,0.1427815]
[1742436301342,0.09344655,85752.0,85751.0,0.0932728]
[1742436301736,0.00017485,85752.0,85751.0,0.0932728]
[1742436302739,0.0466305,85762.0,85752.0,0.0466358]
[1742436302931,0.0932706,85753.0,85752.0,0.11668]
[1742436303131,0.0932706,85753.0,85752.0,0.0932711]
[1742436303743,0.0932706,85753.0,85750.0,0.0942768]
[1742436303744,0.3608,85760.0,85757.0,0.0466331]
[1742436303942,0.4540636,85760.0,85759.0,0.0932641]
[1742436304144,0.3608,85760.0,85759.0,0.0932641]
[1742436304333,0.3608,85760.0,85759.0,0.1416641]
[1742436304534,0.00017485,85761.0,85760.0,0.093263]
[1742436304940,0.00017485,85761.0,85760.0,0.251663]
[1742436306237,0.00017485,85761.0,85760.0,0.254663]
[1742436306437,0.00017485,85761.0,85760.0,0.144663]
[1742436306651,0.00017485,85761.0,85760.0,0.261383]
[1742436306839,0.00017485,85761.0,85760.0,0.144663]
[1742436307237,0.09343675,85761.0,85760.0,1.5514]
[1742436307439,0.09343675,85761.0,85760.0,0.0514]
[1742436307633,0.09343675,85761.0,85760.0,0.144663]
[1742436308038,0.09343675,85761.0,85760.0,0.146663]
[1742436308639,0.09343675,85761.0,85760.0,0.144663]
[1742436309140,0.00017485,85761.0,85760.0,0.144663]
[1742436309337,0.00017485,85761.0,85760.0,0.096263]
[1742436311050,0.00017485,85761.0,85760.0,0.457063]
[1742436311347,0.407424,85774.0,85760.0,0.457063]
[1742436311348,0.3608,85791.0,85781.0,0.0932402]
[1742436311547,0.0466201,85781.0,85774.0,0.11672]
[1742436311747,0.88528,85797.0,85768.0,0.0932532]
[1742436311748,0.1398879,85769.0,85768.0,0.0932532]
[1742436312643,0.0932554,85768.0,85767.0,0.0932543]
[1742436312845,0.4540554,85768.0,85767.0,0.0932543]
[1742436313445,0.45378699,85768.0,85767.0,0.0932543]
[1742436313951,0.45478699,85768.0,85767.0,0.0932543]
[1742436314254,0.0932565,85766.0,85765.0,4e-05]
[1742436314446,0.2099765,85766.0,85765.0,4e-05]
[1742436315455,0.0932619,85761.0,85760.0,0.00017485]
[1742436315845,0.0922619,85761.0,85760.0,0.09343785]
[1742436316252,0.1046836,85761.0,85760.0,0.09343785]
[1742436316554,0.1046836,85761.0,85760.0,0.00017485]
[1742436316948,0.1046836,85761.0,85760.0,0.09343785]
[1742436317155,0.4654836,85761.0,85760.0,0.00017485]
[1742436317547,0.4654836,85761.0,85758.0,4e-05]
[1742436317742,0.0466406,85744.0,85741.0,1.6021]
[1742436317947,0.0932793,85745.0,85732.0,0.4174085]
[1742436317948,0.0466422,85741.0,85732.0,0.4174085]
[1742436318149,0.3608,85742.0,85719.0,0.0967536]
[1742436318150,0.3608,85733.0,85719.0,0.0967536]
[1742436318458,0.1399503,85730.0,85729.0,0.0932949]
[1742436318660,0.0932978,85728.0,85727.0,0.0466493]
[1742436318954,0.0902978,85728.0,85727.0,0.0466493]
[1742436319355,0.0902978,85728.0,85721.0,0.00017496]
[1742436319356,0.0933044,85722.0,85721.0,0.00017496]
[1742436319546,0.2100244,85722.0,85721.0,0.00017496]
[1742436319747,0.2100244,85722.0,85721.0,0.09348036]
[1742436320150,0.3086244,85722.0,85721.0,0.00017496]